[Event "Czech Open Rapid G1 2024"]
[Site "Pardubice"]
[Date "2024.07.18"]
[Round "4.14"]
[White "Vrana, Frantisek"]
[Black "Prokofiev, Valentyn"]
[Result "0-1"]
[Annotator "RC"]
[ECO "A43"]
[WhiteElo "2147"]
[BlackElo "2337"]
[PlyCount "62"]
[EventDate "2024.07.16"]
[EventType "swiss"]
[EventCountry "CZE"]
[SourceTitle "playchess.com"]
[Source "ChessBase"]
[SourceQuality "1"]
[TimeControl "1200+10"]

1. d4 {[%emt 0:00:05]} Nf6 {[%emt 0:00:13]} 2. Nf3 {[%emt 0:00:05]} c5 {[%emt 0:00:08]} 3. d5 {[%emt 0:00:25]} g6 {[%emt 0:00:04]} 4. Nc3 {[%emt 0:00:03]} d6 {[%emt 0:00:02]} 5. e4 {[%emt 0:00:08]} Bg7 {[%emt 0:00:01]} 6. Nd2 {[%emt 0:00:35]} O-O {[%emt 0:00:06]} 7. Be2 {[%emt 0:00:08]} Na6 {[%emt 0:00:45]} 8. O-O {[%emt 0:00:11]} Nc7 {[%emt 0:00:03]} 9. a4 {[%emt 0:00:09]} Rb8 {[%emt 0:00:15]} 10. Nc4 {[%emt 0:00:07]} Nd7 {[%emt 0:00:05]} 11. f4 {[%emt 0:00:45]} b6 {[%emt 0:00:12]} 12. Ne3 {[%emt 0:01:59]} a6 {[%emt 0:00:19]} 13. e5 {[%emt 0:00:35]} dxe5 {[%emt 0:00:37]} 14. f5 {[%emt 0:00:03]} Ne8 {[%emt 0:00:08]} 15. Ng4 {[%emt 0:04:25]} Nd6 {[%emt 0:02:29]} 16. fxg6 {[%emt 0:00:46]} hxg6 {[%emt 0:00:31]} 17. Bh6 {[%emt 0:00:20]} f5 {[%emt 0:00:54]} 18. Bxg7 {[%emt 0:00:08]} Kxg7 {[%emt 0:00:02]} 19. Nf2 {[%emt 0:00:25]} Nf6 {[%emt 0:00:45]} 20. Qd2 {[%emt 0:00:59]} Nf7 {[%emt 0:00:49]} 21. Rad1 {[%emt 0:00:45]} Qd6 {[%emt 0:00:44]} 22. Nh3 {[%emt 0:01:07]} Rh8 {[%emt 0:01:49]} 23. Ng5 {[%emt 0:00:23]} e4 {[%emt 0:01:58]} 24. h3 {[%emt 0:00:37]} Qg3 {[%emt 0:02:27]} 25. Nxf7 {[%emt 0:03:20]} Kxf7 {[%emt 0:00:01]} 26. Bc4 {[%emt 0:00:50]} Rxh3 {[%emt 0:01:23]} 27. Qf4 {[%emt 0:02:03]} Qxf4 {[%emt 0:01:59]} 28. Rxf4 {[%emt 0:00:02]} Rh7 {[%emt 0:00:01]} 29. d6+ {[%emt 0:00:26]} Be6 {[%emt 0:00:01]} 30. Bxa6 {[%emt 0:00:21]} Rbh8 {[%emt 0:00:07]} 31. Kf2 {[%emt 0:00:49]} g5 {[%emt 0:00:12]} 0-1

[Event "Czech Open Rapid G1 2024"]
[Site "Pardubice"]
[Date "2024.07.18"]
[Round "4.15"]
[White "Burdalev, Kirill"]
[Black "Dovzhenko, Viktor"]
[Result "1-0"]
[Annotator "RC"]
[ECO "A53"]
[WhiteElo "2348"]
[BlackElo "2044"]
[PlyCount "114"]
[EventDate "2024.07.16"]
[EventType "swiss"]
[EventCountry "CZE"]
[SourceTitle "playchess.com"]
[Source "ChessBase"]
[SourceQuality "1"]
[TimeControl "1200+10"]

1. d4 {[%emt 0:00:13]} d6 {[%emt 0:00:02]} 2. Nf3 {[%emt 0:00:04]} Bg4 {[%emt 0:00:02]} 3. c4 {[%emt 0:00:03]} Nf6 {[%emt 0:00:03]} 4. Qb3 {[%emt 0:00:03]} b6 {[%emt 0:00:05]} 5. g3 {[%emt 0:00:07]} Nbd7 {[%emt 0:00:53]} 6. Bg2 {[%emt 0:00:20]} Rb8 {[%emt 0:00:23]} 7. Nc3 {[%emt 0:00:53]} e5 {[%emt 0:00:18]} 8. Be3 {[%emt 0:00:36]} Be7 {[%emt 0:00:05]} 9. Rd1 {[%emt 0:00:24]} Bxf3 {[%emt 0:01:12]} 10. Bxf3 {[%emt 0:00:22]} O-O {[%emt 0:00:13]} 11. O-O {[%emt 0:00:15]} Re8 {[%emt 0:00:27]} 12. Qa4 {[%emt 0:01:21]} a5 {[%emt 0:01:22]} 13. Bc6 {[%emt 0:00:39]} Rf8 {[%emt 0:00:20]} 14. h3 {[%emt 0:00:24]} exd4 {[%emt 0:03:06]} 15. Bxd4 {[%emt 0:00:06]} Nc5 {[%emt 0:00:05]} 16. Qc2 {[%emt 0:00:39]} Qc8 {[%emt 0:00:43]} 17. Kh2 {[%emt 0:00:10]} Qe6 {[%emt 0:00:10]} 18. b3 {[%emt 0:00:15]} Na6 {[%emt 0:00:58]} 19. a3 {[%emt 0:00:17]} Nc5 {[%emt 0:00:01]} 20. f4 {[%emt 0:01:23]} a4 {[%emt 0:03:21]} 21. Nxa4 {[%emt 0:00:59]} Nxa4 {[%emt 0:00:07]} 22. Bxa4 {[%emt 0:00:17]} Ne4 {[%emt 0:00:04]} 23. f5 {[%emt 0:00:22]} Qh6 {[%emt 0:03:04]} 24. Qxe4 {[%emt 0:00:03]} Bg5 {[%emt 0:00:15]} 25. h4 {[%emt 0:00:09]} Bf6 {[%emt 0:00:33]} 26. Qf4 {[%emt 0:00:36]} Qh5 {[%emt 0:00:21]} 27. Qf3 {[%emt 0:00:07]} Qxf3 {[%emt 0:00:42]} 28. Rxf3 {[%emt 0:00:02]} Ra8 {[%emt 0:01:04]} 29. Bxf6 {[%emt 0:00:30]} gxf6 {[%emt 0:00:02]} 30. Re3 {[%emt 0:00:01]} c6 {[%emt 0:00:13]} 31. Rxd6 {[%emt 0:00:10]} b5 {[%emt 0:00:01]} 32. cxb5 {[%emt 0:00:06]} cxb5 {[%emt 0:00:01]} 33. Bxb5 {[%emt 0:00:02]} Rxa3 {[%emt 0:00:02]} 34. Rxf6 {[%emt 0:00:05]} Kg7 {[%emt 0:00:11]} 35. Ra6 {[%emt 0:00:25]} Rxa6 {[%emt 0:00:36]} 36. Bxa6 {[%emt 0:00:01]} h5 {[%emt 0:00:06]} 37. Bb7 {[%emt 0:00:40]} Rd8 {[%emt 0:00:11]} 38. Bf3 {[%emt 0:00:05]} Kh6 {[%emt 0:00:09]} 39. b4 {[%emt 0:00:14]} Rb8 {[%emt 0:00:31]} 40. Rb3 {[%emt 0:00:02]} Rb5 {[%emt 0:00:02]} 41. e4 {[%emt 0:00:01]} Kg7 {[%emt 0:00:56]} 42. Bxh5 {[%emt 0:00:04]} Kf6 {[%emt 0:00:01]} 43. Be2 {[%emt 0:00:15]} Rb6 {[%emt 0:00:02]} 44. Bc4 {[%emt 0:00:19]} Ke5 {[%emt 0:00:22]} 45. Bxf7 {[%emt 0:00:09]} Kxe4 {[%emt 0:00:04]} 46. Be6 {[%emt 0:00:08]} Ke5 {[%emt 0:00:10]} 47. b5 {[%emt 0:00:07]} Ke4 {[%emt 0:00:08]} 48. Kg2 {[%emt 0:00:25]} Kd4 {[%emt 0:00:27]} 49. Kf3 {[%emt 0:00:14]} Ke5 {[%emt 0:00:01]} 50. g4 {[%emt 0:00:11]} Kf6 {[%emt 0:00:22]} 51. Kf4 {[%emt 0:00:03]} Ke7 {[%emt 0:01:20]} 52. Ke5 {[%emt 0:00:03]} Kf8 {[%emt 0:00:20]} 53. g5 {[%emt 0:00:04]} Ke7 {[%emt 0:00:01]} 54. h5 {[%emt 0:00:02]} Kf8 {[%emt 0:00:03]} 55. h6 {[%emt 0:00:04]} Rb7 {[%emt 0:02:59]} 56. b6 {[%emt 0:00:10]} Ke8 {[%emt 0:00:10]} 57. h7 {[%emt 0:00:10]} Rxh7 {[%emt 0:00:10]} 1-0

[Event "Czech Open Rapid G1 2024"]
[Site "Pardubice"]
[Date "2024.07.18"]
[Round "4.16"]
[White "Chaika, Vitalii"]
[Black "Dobrowolski, Piotr"]
[Result "0-1"]
[Annotator "RC"]
[ECO "D00"]
[WhiteElo "2111"]
[BlackElo "2412"]
[PlyCount "81"]
[EventDate "2024.07.16"]
[EventType "swiss"]
[EventCountry "CZE"]
[SourceTitle "playchess.com"]
[Source "ChessBase"]
[SourceQuality "1"]
[TimeControl "1200+10"]

1. d4 {[%emt 0:00:10]} e6 {[%emt 0:02:41]} 2. Bf4 {[%emt 0:01:19]} c5 {[%emt 0:00:14]} 3. e3 {[%emt 0:00:36]} Nf6 {[%emt 0:00:14]} 4. c3 {[%emt 0:00:08]} d5 {[%emt 0:00:12]} 5. Nd2 {[%emt 0:00:05]} Bd6 {[%emt 0:00:19]} 6. Bg3 {[%emt 0:00:04]} O-O {[%emt 0:00:35]} 7. Ngf3 {[%emt 0:00:06]} Qc7 {[%emt 0:00:05]} 8. Ne5 {[%emt 0:00:02]} Nbd7 {[%emt 0:00:01]} 9. f4 {[%emt 0:00:02]} b5 {[%emt 0:00:01]} 10. Bd3 {[%emt 0:00:08]} b4 {[%emt 0:00:01]} 11. c4 {[%emt 0:00:29]} Bb7 {[%emt 0:00:53]} 12. Qc2 {[%emt 0:01:22]} cxd4 {[%emt 0:01:16]} 13. exd4 {[%emt 0:00:16]} dxc4 {[%emt 0:00:12]} 14. Ndxc4 {[%emt 0:00:18]} Rac8 {[%emt 0:01:47]} 15. O-O {[%emt 0:01:16]} Nb6 {[%emt 0:00:29]} 16. b3 {[%emt 0:00:47]} Nbd5 {[%emt 0:05:50]} 17. Rae1 {[%emt 0:00:52]} Ne7 {[%emt 0:05:41]} 18. Bh4 {[%emt 0:05:57]} Ng6 {[%emt 0:00:03]} 19. Bg5 {[%emt 0:00:04]} Nd5 {[%emt 0:00:31]} 20. g3 {[%emt 0:01:32]} Be7 {[%emt 0:00:49]} 21. Qe2 {[%emt 0:02:18]} Rcd8 {[%emt 0:00:55]} 22. h4 {[%emt 0:04:06]} Nc3 {[%emt 0:00:11]} 23. Qc2 {[%emt 0:00:02]} Rxd4 {[%emt 0:00:22]} 24. h5 {[%emt 0:00:19]} Nxe5 {[%emt 0:00:10]} 25. Bxh7+ {[%emt 0:00:39]} Kh8 {[%emt 0:00:01]} 26. Nxe5 {[%emt 0:00:03]} Bxg5 {[%emt 0:00:31]} 27. fxg5 {[%emt 0:00:08]} Qd6 {[%emt 0:00:24]} 28. Rxf7 {[%emt 0:00:32]} Rd8 {[%emt 0:00:09]} 29. Ref1 {[%emt 0:00:36]} Be4 {[%emt 0:00:04]} 30. Bxe4 {[%emt 0:00:23]} Rxe4 {[%emt 0:00:04]} 31. Ng6+ {[%emt 0:00:06]} Kh7 {[%emt 0:00:06]} 32. Nf8+ {[%emt 0:00:01]} Kg8 {[%emt 0:00:01]} 33. Qf2 {[%emt 0:00:17]} Re2 {[%emt 0:00:08]} 34. Qf3 {[%emt 0:00:07]} Qc5+ {[%emt 0:00:04]} 35. Kh1 {[%emt 0:00:07]} Qxg5 {[%emt 0:00:01]} 36. Ng6 {[%emt 0:00:03]} Kh7 {[%emt 0:00:22]} 37. Rf8 {[%emt 0:00:03]} Rxf8 {[%emt 0:00:02]} 38. Nxf8+ {[%emt 0:00:06]} Kh6 {[%emt 0:00:01]} 39. Ng6 {[%emt 0:00:53]} Ne4 {[%emt 0:00:27]} 40. g4 {[%emt 0:00:17]} Qe3 {[%emt 0:00:27]} 41. Qxe3+ {[%emt 0:00:21]} 0-1

[Event "Czech Open Rapid G1 2024"]
[Site "Pardubice"]
[Date "2024.07.18"]
[Round "4.17"]
[White "Novotny, Dominik"]
[Black "Kulon, Klaudia"]
[Result "0-1"]
[Annotator "TA"]
[ECO "C55"]
[WhiteElo "1921"]
[BlackElo "2380"]
[PlyCount "62"]
[EventDate "2024.07.16"]
[EventType "swiss"]
[EventCountry "CZE"]
[SourceTitle "playchess.com"]
[Source "ChessBase"]
[SourceQuality "1"]
[TimeControl "1200+10"]

{[%evp 16,62,29,27,30,-14,-25,-3,-4,-22,0,-65,-5,-42,28,17,39,0,38,42,41,37,59,0,0,6,494,514,484,0,0,-77,-58,-58,0,0,0,0,7,-171,-107,-116,0,-395,-369,-1259,-1214,-1213,-1201]} 1. e4 {[%emt 0:00:02]} e5 {[%emt 0:05:40]} 2. Nf3 {[%emt 0:00:02]} Nc6 {[%emt 0:00:03]} 3. Bc4 {[%emt 0:00:03]} Nf6 {[%emt 0:00:02]} 4. d3 {[%emt 0:00:02]} h6 {[%emt 0:00:01]} 5. O-O {[%emt 0:00:09]} d6 {[%emt 0:00:01]} 6. c3 {[%emt 0:00:28]} g6 {[%emt 0:00:01]} 7. Re1 {[%emt 0:00:39]} Bg7 {[%emt 0:00:01]} 8. a4 {[%emt 0:00:07]} O-O {[%emt 0:00:02]} 9. h3 {[%emt 0:00:08]} d5 {[%emt 0:00:23]} 10. Bb5 {[%emt 0:03:03]} dxe4 {[%emt 0:00:19]} 11. Bxc6 {[%emt 0:00:05]} bxc6 {[%emt 0:01:14] The position is equal.} 12. Nxe5 {[%emt 0:00:17]} Qd5 {[%emt 0:00:11]} (12... exd3 {simplifies} 13. Qxd3 Qxd3 14. Nxd3 Nd5) 13. f4 {[%emt 0:04:16]} (13. d4 $1 $11) 13... Rd8 {[%emt 0:00:40]} (13... exf3 $15 14. Nxf3 Re8 15. Rxe8+ Nxe8) 14. d4 {[%emt 0:00:16]} h5 {[%emt 0:00:04]} (14... c5 $15) 15. Be3 {[%emt 0:01:16]} Ba6 {[%emt 0:01:24]} 16. Qc2 {[%emt 0:01:02]} Nd7 {[%emt 0:01:44][%cal Rd7e5,Bf6d7,Bd7f8,Bf8e6][%mdl 32]} 17. c4 {[%emt 0:03:40]} Qe6 {[%emt 0:00:03][%cal Rd7e5]} 18. b3 {[%emt 0:01:27]} Nf8 {[%emt 0:01:07]} 19. Bf2 {[%emt 0:01:59]} (19. Qxe4 f6 20. d5 (20. f5 $2 gxf5 21. Qc2 fxe5 $19) 20... Qe8 $17 (20... cxd5 $2 21. cxd5 Qe8 22. Bd4 $19)) ({White should try} 19. Nc3 $14 f5 20. Rac1) 19... f6 $11 {[%emt 0:00:18]} 20. Nf3 {[%emt 0:00:06]} exf3 {[%emt 0:00:41][%mdl 8192]} (20... f5 $11 {and Black has nothing to worry.}) 21. Rxe6 $18 {[%emt 0:00:07]} Nxe6 {[%emt 0:00:01]} 22. g3 $2 {[%emt 0:01:41]} (22. gxf3 f5 $18) (22. Qxg6 $18 Nxf4 23. Qe4) 22... f5 $11 {[%emt 0:00:08]} 23. Nc3 {[%emt 0:01:31]} (23. Kf1 $1 $11) 23... Nxd4 $17 {[%emt 0:00:11]} 24. Bxd4 {[%emt 0:00:19]} Bxd4+ {[%emt 0:00:02]} ({Better is} 24... Rxd4 $15 25. Rf1 Rad8 26. Rxf3 R4d6 (26... Rd2 27. Qc1 $11)) 25. Kf1 $1 $11 {[%emt 0:00:15]} Re8 {[%emt 0:00:26] ...Re3 is the strong threat.} 26. Rd1 {[%emt 0:00:30]} Rad8 {[%emt 0:00:07] [#]} 27. g4 $2 {[%emt 0:00:24] White is weak on the dark squares} hxg4 {[%emt 0:00:19]} (27... fxg4 $2 28. Qxg6+ Kf8 29. Rxd4 (29. Qxc6 Bxc3 30. Qc5+ Rd6 $11) 29... Rxd4 30. Qf6+ (30. Qxc6 Rd6 $18) 30... Kg8 31. Qxd4 $18) (27... c5 $1 $19 28. gxf5 Bc8) 28. hxg4 $17 {[%emt 0:00:06] [#]} Kg7 {[%emt 0:00:23] Some like it hot. Black has more active pieces.} (28... Re3 29. gxf5 (29. Rd3 Re7 $11) 29... Bc8 (29... Rxc3 $2 30. Qe4 $18) 30. Qf2 Rxc3 31. Qb2 $14) (28... Bc8 $1 $17 29. Qd3 f2 (29... fxg4 30. Qxg6+ Kf8 31. Qh6+ Bg7 32. Qh4 $11) (29... Bxc3 $2 30. Qxd8 Rxd8 31. Rxd8+ Kf7 32. g5 $17) (29... Re3 $2 30. Qxe3 Bxe3 31. Rxd8+ Kf7 32. Rxc8 $18)) 29. gxf5 $2 {[%emt 0:00:28][%mdl 8192] [#]} (29. Rxd4 $1 $11 Rxd4 30. Qf2) 29... Rh8 $1 $19 {[%emt 0:00:02][%cal Rh8h1]} 30. Ke1 $2 {[%emt 0:00:30]} (30. Rxd4 Rxd4 (30... Rh1+ $2 31. Kf2 $19) 31. Ne2 fxe2+ 32. Qxe2 Rxf4+ 33. Ke1 Rxf5 (33... gxf5 $2 {loses.} 34. Qe5+ Kf7 35. Qxc7+ Ke6 36. Qxf4 $18) (33... Rh1+ $2 34. Kd2 $19) 34. Qe7+ Rf7 35. Qe5+ Kh7 36. Qh2+ Kg8 37. Qg1) 30... Rh1+ {[%emt 0:01:10]} 31. Kd2 {[%emt 0:00:02]} Rh2+ {[%emt 0:00:02] What a bad dream for White.   Weighted Error Value: White=0.96/Black=0.52.  Loses game:     	White=2     	Black=1      Missed win:     	White=1     	---        Mistake:       	White=4     	Black=5      Inaccurate:     	White=3     	Black=1      OK:         	White=4     	Black=3      Best:        	White=2     	Black=2      Strong:       	White=1     	Black=1} 0-1

[Event "Czech Open Rapid G1 2024"]
[Site "Pardubice"]
[Date "2024.07.18"]
[Round "4.18"]
[White "Mica, Marek"]
[Black "Dolensky, Filip"]
[Result "1/2-1/2"]
[Annotator "TA"]
[ECO "E09"]
[WhiteElo "2375"]
[BlackElo "2085"]
[PlyCount "119"]
[EventDate "2024.07.16"]
[EventType "swiss"]
[EventCountry "CZE"]
[SourceTitle "playchess.com"]
[Source "ChessBase"]
[SourceQuality "1"]
[TimeControl "1200+10"]

{[%evp 27,119,81,78,59,66,63,70,70,72,79,94,83,84,100,88,110,102,100,99,99,114,90,97,0,0,0,0,0,0,1,91,0,0,0,0,0,0,0,0,0,0,0,0,0,0,0,0,0,0,0,0,0,0,0,0,0,0,0,0,0,0,0,0,0,0,0,0,0,0,0,0,0,0,0,0,0,0,0,0,0,0,0,0,0,0,0,0,0,0,0,0,0,0,0]} 1. Nf3 {[%emt 0:02:49]} Nf6 {[%emt 0:00:04]} 2. c4 {[%emt 0:00:01]} e6 {[%emt 0:00:07]} 3. d4 {[%emt 0:00:07]} Bb4+ {[%emt 0:00:06]} 4. Nbd2 {[%emt 0:00:02]} d5 {[%emt 0:00:43]} 5. g3 {[%emt 0:00:09]} c6 {[%emt 0:00:08]} 6. Bg2 {[%emt 0:00:07]} Nbd7 {[%emt 0:00:07]} 7. O-O {[%emt 0:00:11]} O-O {[%emt 0:00:05]} 8. Qc2 {[%emt 0:00:02]} b6 {[%emt 0:01:02]} 9. e4 {[%emt 0:00:13]} dxe4 {[%emt 0:00:41]} 10. Nxe4 {[%emt 0:03:23]} Bb7 {[%emt 0:00:01]} 11. Rd1 {[%emt 0:00:57]} Nxe4 {[%emt 0:01:17]} 12. Qxe4 {[%emt 0:00:03]} Qc7 {[%emt 0:00:18]} 13. Bf4 {[%emt 0:00:22]} Bd6 {[%emt 0:00:22]} 14. Bxd6 {[%emt 0:00:09]} Qxd6 {[%emt 0:00:01]} 15. Rac1 {[%emt 0:00:21]} (15. Ne5 {seems wilder.} Rac8 16. c5 Qe7 17. b4) 15... Nf6 {[%emt 0:00:54]} 16. Qe3 {[%emt 0:01:00]} Qb4 {[%emt 0:00:20]} 17. b3 {[%emt 0:00:44] White is slightly better.} Rfd8 {[%emt 0:00:47]} 18. Ne5 {[%emt 0:00:29]} Rac8 {[%emt 0:00:04]} 19. c5 {[%emt 0:01:25]} bxc5 {[%emt 0:00:15]} 20. dxc5 {[%emt 0:00:07]} Rxd1+ {[%emt 0:01:05]} 21. Rxd1 {[%emt 0:00:04][%cal Bc1d1,Bd1d4,Bd4b4,Bb4b7,Bb7d7][%mdl 32]} Nd5 {[%emt 0:00:01]} 22. Qd4 {[%emt 0:03:26]} a5 {[%emt 0:01:03]} 23. Qxb4 {[%emt 0:05:17]} axb4 {[%emt 0:00:19]} 24. Rd4 {[%emt 0:00:11] White is more active.} f6 {[%emt 0:00:30]} 25. Bxd5 {[%emt 0:00:50]} ({White should play} 25. Nd3 $16) 25... cxd5 $11 {[%emt 0:01:12]} 26. Rxb4 {[%emt 0:00:37]} ({Much worse is} 26. Nd3 e5 27. Rxb4 Ba6 $17) 26... fxe5 {[%emt 0:01:01]} 27. Rxb7 {[%emt 0:00:02]} Rxc5 $16 {[%emt 0:00:01][%mdl 4096] Endgame. KR-KR} 28. a4 {[%emt 0:00:01] With the idea b4.} d4 {[%emt 0:01:29] [#]} (28... Rc1+ $11 29. Kg2 e4) 29. b4 {[%emt 0:00:20]} (29. Kf1 $1 $16) 29... Rc1+ $11 {[%emt 0:01:50] The position is equal.} 30. Kg2 {[%emt 0:00:01] aiming for b5.} d3 {[%emt 0:00:01] Threatens to win with ...d2.} 31. Rd7 $1 {[%emt 0:00:16][%cal Oa4a5] Black must now prevent a5!} e4 {[%emt 0:05:38]} 32. b5 {[%emt 0:00:03] And now b6 would win.} Rb1 {[%emt 0:00:15]} 33. a5 $1 {[%emt 0:00:42]} Rxb5 {[%emt 0:00:11]} 34. a6 {[%emt 0:00:01]} Ra5 {[%emt 0:00:36]} 35. a7 {[%emt 0:00:02] [#] Strongly threatening Rd8+.} d2 {[%emt 0:00:04]} 36. Rxd2 {[%emt 0:00:01]} Rxa7 {[%emt 0:00:02]} 37. Rd4 {[%emt 0:00:01]} Kf7 {[%emt 0:00:03]} 38. Rxe4 {[%emt 0:00:02]} Ra2 {[%emt 0:00:12]} 39. Kf3 {[%emt 0:00:03]} Ra5 {[%emt 0:00:46]} 40. Rb4 {[%emt 0:00:05]} Rf5+ {[%emt 0:00:13]} 41. Ke3 {[%emt 0:00:09]} Rh5 {[%emt 0:00:35]} 42. h4 {[%emt 0:00:10]} Re5+ {[%emt 0:00:47]} 43. Kd3 {[%emt 0:00:08]} Rf5 {[%emt 0:00:11]} 44. f4 {[%emt 0:00:03]} h5 {[%emt 0:00:08]} 45. Re4 {[%emt 0:00:19]} Kf6 {[%emt 0:00:04]} 46. Kd4 {[%emt 0:00:02]} Rd5+ {[%emt 0:00:02]} 47. Ke3 {[%emt 0:00:03]} Ra5 {[%emt 0:00:03]} 48. Kf3 $1 {[%emt 0:00:34]} Kf5 {[%emt 0:00:53]} 49. Re3 {[%emt 0:00:02]} Kf6 {[%emt 0:00:37]} 50. Rb3 {[%emt 0:00:14]} Kf5 {[%emt 0:00:19]} 51. Rb7 {[%emt 0:00:31]} Ra3+ {[%emt 0:00:03]} 52. Kg2 {[%emt 0:00:06]} Ra2+ {[%emt 0:00:05]} 53. Kh3 {[%emt 0:00:03]} Kf6 {[%emt 0:00:04]} 54. Rb3 {[%emt 0:00:14]} Rf2 {[%emt 0:00:18]} 55. Rb4 {[%emt 0:00:32]} Ra2 {[%emt 0:00:04]} 56. Rb8 {[%emt 0:00:14]} g6 {[%emt 0:00:30]} 57. Rb5 {[%emt 0:00:16]} Rf2 {[%emt 0:00:16]} 58. Rg5 {[%emt 0:00:21]} Rd2 {[%emt 0:00:17]} 59. Re5 {[%emt 0:00:19]} Rf2 {[%emt 0:00:05]} 60. Ra5 {[%emt 0:00:02] Weighted Error Value: White=0.07 (flawless) /Black=0.05 (flawless) .  Mistake:       	White=2     	Black=1      OK:         	White=16    	Black=11     Best:        	White=2     	Black=10     Strong:       	White=3     	---} 1/2-1/2

[Event "Czech Open Rapid G1 2024"]
[Site "Pardubice"]
[Date "2024.07.18"]
[Round "4.19"]
[White "Jurek, Josef"]
[Black "Eropunov, Gleb"]
[Result "1-0"]
[Annotator "RC"]
[ECO "E08"]
[WhiteElo "2200"]
[BlackElo "2190"]
[PlyCount "77"]
[EventDate "2024.07.16"]
[EventType "swiss"]
[EventCountry "CZE"]
[SourceTitle "playchess.com"]
[Source "ChessBase"]
[SourceQuality "1"]
[TimeControl "1200+10"]

1. Nf3 {[%emt 0:00:04]} Nf6 {[%emt 0:00:02]} 2. c4 {[%emt 0:00:03]} e6 {[%emt 0:00:03]} 3. g3 {[%emt 0:00:08]} d5 {[%emt 0:00:08]} 4. Bg2 {[%emt 0:00:02]} Be7 {[%emt 0:00:23]} 5. O-O {[%emt 0:00:07]} O-O {[%emt 0:00:04]} 6. d4 {[%emt 0:00:06]} Nbd7 {[%emt 0:00:04]} 7. Qc2 {[%emt 0:00:12]} a5 {[%emt 0:00:04]} 8. Nbd2 {[%emt 0:01:06]} c5 {[%emt 0:00:05]} 9. cxd5 {[%emt 0:00:29]} Nxd5 {[%emt 0:00:04]} 10. a3 {[%emt 0:00:36]} b6 {[%emt 0:00:03]} 11. e4 {[%emt 0:00:22]} N5f6 {[%emt 0:00:02]} 12. e5 {[%emt 0:02:03]} Nd5 {[%emt 0:00:03]} 13. Ne4 {[%emt 0:00:43]} h6 {[%emt 0:03:53]} 14. b3 {[%emt 0:01:42]} cxd4 {[%emt 0:06:02]} 15. Rd1 {[%emt 0:00:34]} Ba6 {[%emt 0:00:18]} 16. Rxd4 {[%emt 0:00:38]} Rc8 {[%emt 0:00:06]} 17. Qd2 {[%emt 0:03:18]} Qc7 {[%emt 0:00:24]} 18. Bb2 {[%emt 0:01:54]} Nxe5 {[%emt 0:03:02]} 19. Nxe5 {[%emt 0:01:20]} Qxe5 {[%emt 0:00:04]} 20. Rxd5 {[%emt 0:01:19]} Qxd5 {[%emt 0:01:29]} 21. Nf6+ {[%emt 0:00:02]} Bxf6 {[%emt 0:00:02]} 22. Bxd5 {[%emt 0:00:02]} Bxb2 {[%emt 0:01:26]} 23. Qxb2 {[%emt 0:00:01]} exd5 {[%emt 0:00:01]} 24. Qd4 {[%emt 0:00:27]} Rc6 {[%emt 0:01:37]} 25. Qxd5 {[%emt 0:00:35]} Rfc8 {[%emt 0:00:06]} 26. Rd1 {[%emt 0:01:00]} Bb7 {[%emt 0:03:52]} 27. Qd4 {[%emt 0:00:11]} Rc1 {[%emt 0:00:32]} 28. f4 {[%emt 0:00:46]} R1c2 {[%emt 0:00:20]} 29. Rd2 {[%emt 0:00:35]} R2c5 {[%emt 0:00:09]} 30. Kf2 {[%emt 0:01:35]} Rd5 {[%emt 0:00:28]} 31. Qe3 {[%emt 0:00:44]} Rdc5 {[%emt 0:00:05]} 32. Qe7 {[%emt 0:00:18]} R5c7 {[%emt 0:00:18]} 33. Qe3 {[%emt 0:00:50]} Rc5 {[%emt 0:00:04]} 34. b4 {[%emt 0:00:10]} axb4 {[%emt 0:00:10]} 35. axb4 {[%emt 0:00:02]} Rb5 {[%emt 0:00:02]} 36. Qe7 {[%emt 0:00:09]} Bh1 {[%emt 0:00:22]} 37. Rd8+ {[%emt 0:00:19]} Rxd8 {[%emt 0:00:07]} 38. Qxd8+ {[%emt 0:00:01]} Kh7 {[%emt 0:00:01]} 39. Qd3+ {[%emt 0:00:01]} 1-0

[Event "Czech Open Rapid G1 2024"]
[Site "Pardubice"]
[Date "2024.07.18"]
[Round "4.20"]
[White "Mojzis, Jaroslav"]
[Black "Ludvik, Tomas"]
[Result "0-1"]
[Annotator "RC"]
[ECO "D11"]
[WhiteElo "2068"]
[BlackElo "2210"]
[PlyCount "58"]
[EventDate "2024.07.16"]
[EventType "swiss"]
[EventCountry "CZE"]
[SourceTitle "playchess.com"]
[Source "ChessBase"]
[SourceQuality "1"]
[TimeControl "1200+10"]

1. d4 {[%emt 0:00:03]} d5 {[%emt 0:00:06]} 2. c4 {[%emt 0:00:03]} c6 {[%emt 0:00:09]} 3. Nf3 {[%emt 0:00:18]} Nf6 {[%emt 0:00:12]} 4. g3 {[%emt 0:00:23]} Bf5 {[%emt 0:00:30]} 5. Bg2 {[%emt 0:00:48]} e6 {[%emt 0:00:05]} 6. Nc3 {[%emt 0:01:19]} h6 {[%emt 0:00:08]} 7. O-O {[%emt 0:00:41]} Nbd7 {[%emt 0:00:40]} 8. Nd2 {[%emt 0:00:43]} Be7 {[%emt 0:00:08]} 9. e4 {[%emt 0:00:12]} dxe4 {[%emt 0:00:03]} 10. Ndxe4 {[%emt 0:00:04]} O-O {[%emt 0:00:05]} 11. Re1 {[%emt 0:04:38]} Nxe4 {[%emt 0:05:50]} 12. Nxe4 {[%emt 0:00:04]} Nf6 {[%emt 0:00:02]} 13. Nxf6+ {[%emt 0:03:34]} Bxf6 {[%emt 0:00:02]} 14. Be3 {[%emt 0:00:03]} Qc7 {[%emt 0:03:02]} 15. Qb3 {[%emt 0:00:31]} Rfd8 {[%emt 0:01:09]} 16. Rad1 {[%emt 0:00:20]} Rd7 {[%emt 0:00:27]} 17. d5 {[%emt 0:01:16]} cxd5 {[%emt 0:03:18]} 18. cxd5 {[%emt 0:00:03]} Bc2 {[%emt 0:00:18]} 19. Qa3 {[%emt 0:02:13]} Bxd1 {[%emt 0:00:10]} 20. Rxd1 {[%emt 0:00:01]} exd5 {[%emt 0:01:00]} 21. Rxd5 {[%emt 0:00:25]} Rxd5 {[%emt 0:00:04]} 22. Bxd5 {[%emt 0:00:03]} Rd8 {[%emt 0:00:47]} 23. Qb3 {[%emt 0:00:55]} Qd7 {[%emt 0:00:14]} 24. Bf3 {[%emt 0:00:28]} b6 {[%emt 0:00:14]} 25. Kg2 {[%emt 0:00:02]} Bd4 {[%emt 0:00:33]} 26. Bf4 {[%emt 0:00:20]} Qe6 {[%emt 0:00:51]} 27. Qa4 {[%emt 0:00:34]} a5 {[%emt 0:00:47]} 28. Qb5 {[%emt 0:01:36]} Qe1 {[%emt 0:00:32]} 29. Bc7 {[%emt 0:00:17]} Qxf2+ {[%emt 0:00:05]} 0-1